[Event "*** Titled Tuesday Blitz"]
[Site "Chess.com"]
[Date "2021.04.06"]
[Round "1"]
[White "Harry_Rakkel"]
[Black "tylityli"]
[Result "0-1"]
[WhiteElo "2588"]
[BlackElo "2319"]
[TimeControl "180+1"]
[EndTime "10:07:40 PDT"]
[Termination "tylityli won on time"]

1. d4 {[%clk 0:03:00.7]} 1... Nf6 {[%clk 0:02:56]} 2. c4 {[%clk 0:03:00]} 2...
e6 {[%clk 0:02:53.9]} 3. Nc3 {[%clk 0:02:59.4]} 3... Bb4 {[%clk 0:02:53]} 4. Nf3
{[%clk 0:02:58.8]} 4... O-O {[%clk 0:02:50.9]} 5. Bg5 {[%clk 0:02:57.8]} 5... h6
{[%clk 0:02:49.9]} 6. Bh4 {[%clk 0:02:57.6]} 6... c5 {[%clk 0:02:46.3]} 7. Rc1
{[%clk 0:02:55.9]} 7... cxd4 {[%clk 0:02:37.7]} 8. Nxd4 {[%clk 0:02:52]} 8...
Nc6 {[%clk 0:02:37.2]} 9. e3 {[%clk 0:02:44.2]} 9... Be7 {[%clk 0:02:20.5]} 10.
Be2 {[%clk 0:02:39.3]} 10... d5 {[%clk 0:02:19.4]} 11. O-O {[%clk 0:02:35.4]}
11... dxc4 {[%clk 0:02:07.8]} 12. Nxc6 {[%clk 0:02:31.5]} 12... bxc6 {[%clk
0:01:59]} 13. Bxc4 {[%clk 0:02:30.5]} 13... Nd5 {[%clk 0:01:58.7]} 14. Bxe7
{[%clk 0:02:27.8]} 14... Qxe7 {[%clk 0:01:56.8]} 15. Na4 {[%clk 0:02:26]} 15...
a5 {[%clk 0:01:48.3]} 16. Qf3 {[%clk 0:02:07.7]} 16... Ba6 {[%clk 0:01:42.6]}
17. b3 {[%clk 0:01:51.3]} 17... Qa3 {[%clk 0:01:34.2]} 18. Qe2 {[%clk
0:01:50.1]} 18... Bb5 {[%clk 0:01:26.8]} 19. e4 {[%clk 0:01:34]} 19... Nf4
{[%clk 0:01:09.1]} 20. Qe3 {[%clk 0:01:28.8]} 20... e5 {[%clk 0:01:05.9]} 21. g3
{[%clk 0:01:03.6]} 21... Ne6 {[%clk 0:01:01.5]} 22. Qc3 {[%clk 0:00:25.6]} 22...
Nd4 {[%clk 0:00:55.9]} 23. Qb2 {[%clk 0:00:23]} 23... Qe7 {[%clk 0:00:48.3]} 24.
Bxb5 {[%clk 0:00:19.6]} 24... cxb5 {[%clk 0:00:46.7]} 25. Nb6 {[%clk 0:00:19.4]}
25... Rad8 {[%clk 0:00:42.8]} 26. Nd5 {[%clk 0:00:19.2]} 26... Qg5 {[%clk
0:00:41.7]} 27. Kg2 {[%clk 0:00:12.3]} 27... f5 {[%clk 0:00:32.2]} 28. Qb1
{[%clk 0:00:09.5]} 28... f4 {[%clk 0:00:29.8]} 29. f3 {[%clk 0:00:08.5]} 29...
fxg3 {[%clk 0:00:20.7]} 30. hxg3 {[%clk 0:00:09.4]} 30... Ne2 {[%clk 0:00:20.2]}
31. g4 {[%clk 0:00:06.9]} 31... Nxc1 {[%clk 0:00:19.2]} 32. Qxc1 {[%clk
0:00:06.1]} 32... Qg6 {[%clk 0:00:10.4]} 33. Qc7 {[%clk 0:00:04.9]} 33... Qe6
{[%clk 0:00:07.6]} 34. Qxa5 {[%clk 0:00:03.1]} 34... Rf7 {[%clk 0:00:04.4]} 35.
Qxb5 {[%clk 0:00:02.2]} 35... Rfd7 {[%clk 0:00:04.3]} 36. Rf2 {[%clk 0:00:02.2]}
36... Qf7 {[%clk 0:00:03.3]} 37. a4 {[%clk 0:00:02.1]} 37... Kh7 {[%clk
0:00:01.8]} 38. Qc4 {[%clk 0:00:02]} 38... h5 {[%clk 0:00:01.4]} 39. g5 {[%clk
0:00:01.2]} 39... h4 {[%clk 0:00:01.2]} 0-1

[Event "*** Titled Tuesday Blitz"]
[Site "Chess.com"]
[Date "2021.04.06"]
[Round "1"]
[White "IANOV0007"]
[Black "Genghis_K"]
[Result "0-1"]
[WhiteElo "2464"]
[BlackElo "2936"]
[TimeControl "180+1"]
[EndTime "10:07:44 PDT"]
[Termination "Genghis_K won by resignation"]

1. Nf3 {[%clk 0:03:00.2]} 1... Nf6 {[%clk 0:02:58.8]} 2. g3 {[%clk 0:02:55.8]}
2... d5 {[%clk 0:02:59.2]} 3. Bg2 {[%clk 0:02:54.8]} 3... c6 {[%clk 0:02:59.9]}
4. O-O {[%clk 0:02:52.6]} 4... Bf5 {[%clk 0:03:00.5]} 5. d3 {[%clk 0:02:51.3]}
5... h6 {[%clk 0:03:00.9]} 6. c4 {[%clk 0:02:49.6]} 6... e6 {[%clk 0:03:00.3]}
7. Be3 {[%clk 0:02:48.3]} 7... Be7 {[%clk 0:02:57.6]} 8. Qb3 {[%clk 0:02:47.2]}
8... Qc7 {[%clk 0:02:45.9]} 9. cxd5 {[%clk 0:02:42]} 9... exd5 {[%clk
0:02:44.5]} 10. Rc1 {[%clk 0:02:41.7]} 10... Nbd7 {[%clk 0:02:30.9]} 11. Nc3
{[%clk 0:02:40.2]} 11... Bh7 {[%clk 0:02:08.6]} 12. Nxd5 {[%clk 0:02:33.2]}
12... Nxd5 {[%clk 0:02:03.6]} 13. Qxd5 {[%clk 0:02:31.5]} 13... O-O {[%clk
0:02:03.2]} 14. Qb3 {[%clk 0:02:28.9]} 14... Nf6 {[%clk 0:02:01.7]} 15. a3
{[%clk 0:02:19.6]} 15... Rfe8 {[%clk 0:01:58.6]} 16. Rc2 {[%clk 0:02:15.7]}
16... Bf8 {[%clk 0:01:57.5]} 17. Bd4 {[%clk 0:02:14.2]} 17... Nd7 {[%clk
0:01:46.7]} 18. Rac1 {[%clk 0:02:07.7]} 18... Bf5 {[%clk 0:01:46.8]} 19. Nh4
{[%clk 0:01:51.1]} 19... Be6 {[%clk 0:01:46.4]} 20. Qc3 {[%clk 0:01:49.6]} 20...
Qd6 {[%clk 0:01:42.3]} 21. Be3 {[%clk 0:01:40.2]} 21... Nf6 {[%clk 0:01:40]} 22.
Bf4 {[%clk 0:01:35.2]} 22... Qd7 {[%clk 0:01:40.1]} 23. Nf3 {[%clk 0:01:34]}
23... Nd5 {[%clk 0:01:40.2]} 24. Qd2 {[%clk 0:01:31.6]} 24... Nxf4 {[%clk
0:01:39]} 25. Qxf4 {[%clk 0:01:28.6]} 25... Bd6 {[%clk 0:01:39.3]} 26. Qa4
{[%clk 0:01:27.4]} 26... Qe7 {[%clk 0:01:35.8]} 27. Nd4 {[%clk 0:01:19.9]} 27...
Bd7 {[%clk 0:01:36]} 28. Qb3 {[%clk 0:01:13.3]} 28... Rab8 {[%clk 0:01:35.3]}
29. Be4 {[%clk 0:01:10.1]} 29... Qf6 {[%clk 0:01:35.1]} 30. e3 {[%clk
0:01:04.1]} 30... g6 {[%clk 0:01:33.4]} 31. Ne2 {[%clk 0:00:57.6]} 31... Kg7
{[%clk 0:01:32.4]} 32. Qc3 {[%clk 0:00:55.8]} 32... Be5 {[%clk 0:01:30.5]} 33.
Qa5 {[%clk 0:00:50.8]} 33... a6 {[%clk 0:01:23.6]} 34. Qb4 {[%clk 0:00:48]}
34... Bd6 {[%clk 0:01:21.9]} 35. Qc3 {[%clk 0:00:46]} 35... Be5 {[%clk 0:01:22]}
36. d4 {[%clk 0:00:45.5]} 36... Bxd4 {[%clk 0:01:19.5]} 37. Qxd4 {[%clk
0:00:42.2]} 37... Qxd4 {[%clk 0:01:19.5]} 38. Nxd4 {[%clk 0:00:42.2]} 38... Rxe4
{[%clk 0:01:20]} 39. Rd2 {[%clk 0:00:42.2]} 39... Re7 {[%clk 0:01:18.4]} 40.
Rcd1 {[%clk 0:00:41.1]} 40... Bg4 {[%clk 0:01:17.9]} 41. f3 {[%clk 0:00:39.9]}
41... Bd7 {[%clk 0:01:14.6]} 42. Kf2 {[%clk 0:00:39]} 42... Rbe8 {[%clk
0:01:15]} 43. e4 {[%clk 0:00:38]} 43... c5 {[%clk 0:01:15.4]} 44. Nb3 {[%clk
0:00:36.8]} 44... Ba4 {[%clk 0:01:16]} 45. Nxc5 {[%clk 0:00:33.4]} 45... Bxd1
{[%clk 0:01:15.7]} 46. Rxd1 {[%clk 0:00:33.6]} 46... Rc8 {[%clk 0:01:15.3]} 47.
b4 {[%clk 0:00:33.2]} 47... b6 {[%clk 0:01:15.6]} 48. Nxa6 {[%clk 0:00:32.1]}
48... Rc2+ {[%clk 0:01:16.2]} 49. Ke3 {[%clk 0:00:31.3]} 49... Rc3+ {[%clk
0:01:16.5]} 50. Rd3 {[%clk 0:00:30.6]} 50... Rc2 {[%clk 0:01:16.9]} 51. b5
{[%clk 0:00:29.1]} 51... Rxh2 {[%clk 0:01:16.9]} 52. Nb4 {[%clk 0:00:29.1]}
52... Rb2 {[%clk 0:01:15.2]} 53. Nd5 {[%clk 0:00:25.9]} 53... Ra7 {[%clk
0:01:15.5]} 54. Nxb6 {[%clk 0:00:23.5]} 54... Rxb5 {[%clk 0:01:15.6]} 55. Nc4
{[%clk 0:00:23.4]} 55... Ra4 {[%clk 0:01:15.3]} 56. Nd6 {[%clk 0:00:22.4]} 56...
Rba5 {[%clk 0:01:14.5]} 57. Ne8+ {[%clk 0:00:21.2]} 57... Kf8 {[%clk 0:01:14.2]}
58. Nf6 {[%clk 0:00:20.4]} 58... Rxa3 {[%clk 0:01:13.9]} 59. g4 {[%clk
0:00:20.5]} 59... Rxd3+ {[%clk 0:01:12.6]} 60. Kxd3 {[%clk 0:00:20.3]} 60...
Ra3+ {[%clk 0:01:12.8]} 61. Ke2 {[%clk 0:00:19.6]} 61... Kg7 {[%clk 0:01:12.6]}
62. e5 {[%clk 0:00:18.4]} 62... Rb3 {[%clk 0:01:09.6]} 63. f4 {[%clk 0:00:17.5]}
63... g5 {[%clk 0:01:08.4]} 64. f5 {[%clk 0:00:16.9]} 64... Rb5 {[%clk 0:01:08]}
65. Nd7 {[%clk 0:00:14.7]} 65... Rd5 {[%clk 0:01:07.8]} 66. f6+ {[%clk
0:00:12.9]} 66... Kg8 {[%clk 0:01:05.4]} 67. e6 {[%clk 0:00:12.2]} 67... fxe6
{[%clk 0:01:04.2]} 68. f7+ {[%clk 0:00:12.1]} 68... Kxf7 {[%clk 0:01:04.3]} 0-1

[Event "*** Titled Tuesday Blitz"]
[Site "Chess.com"]
[Date "2021.04.06"]
[Round "1"]
[White "MasterMK73"]
[Black "Sanyura"]
[Result "0-1"]
[WhiteElo "2273"]
[BlackElo "2593"]
[TimeControl "180+1"]
[EndTime "10:07:44 PDT"]
[Termination "Sanyura won on time"]

1. e4 {[%clk 0:02:59.4]} 1... c6 {[%clk 0:02:56.6]} 2. d4 {[%clk 0:02:58.2]}
2... d5 {[%clk 0:02:56.6]} 3. e5 {[%clk 0:02:57.8]} 3... c5 {[%clk 0:02:53.4]}
4. dxc5 {[%clk 0:02:55.3]} 4... Nc6 {[%clk 0:02:53.3]} 5. Nf3 {[%clk 0:02:50.9]}
5... Bg4 {[%clk 0:02:53.1]} 6. Bb5 {[%clk 0:02:40.8]} 6... e6 {[%clk 0:02:48.3]}
7. a3 {[%clk 0:02:26.4]} 7... Bxc5 {[%clk 0:02:45.7]} 8. Bxc6+ {[%clk
0:02:17.5]} 8... bxc6 {[%clk 0:02:44.4]} 9. b4 {[%clk 0:02:15]} 9... Bb6 {[%clk
0:02:42.2]} 10. O-O {[%clk 0:02:03.5]} 10... Ne7 {[%clk 0:02:41.1]} 11. h3
{[%clk 0:01:59.2]} 11... Bh5 {[%clk 0:02:30.6]} 12. Bb2 {[%clk 0:01:58.8]} 12...
O-O {[%clk 0:02:29.8]} 13. Nbd2 {[%clk 0:01:54.9]} 13... a5 {[%clk 0:02:29.7]}
14. Re1 {[%clk 0:01:37.2]} 14... Rb8 {[%clk 0:01:40.7]} 15. Nf1 {[%clk
0:01:34.1]} 15... Ba7 {[%clk 0:01:36.9]} 16. Ng3 {[%clk 0:01:28.1]} 16... Bxf3
{[%clk 0:01:35]} 17. Qxf3 {[%clk 0:01:26.5]} 17... axb4 {[%clk 0:01:30]} 18.
axb4 {[%clk 0:01:25.3]} 18... Qc7 {[%clk 0:01:06.2]} 19. Nh5 {[%clk 0:01:18.4]}
19... Rxb4 {[%clk 0:00:56.1]} 20. Ba3 {[%clk 0:01:16.4]} 20... Rb7 {[%clk
0:00:52.7]} 21. Qg4 {[%clk 0:00:48.1]} 21... Ng6 {[%clk 0:00:27.9]} 22. Bxf8
{[%clk 0:00:44.4]} 22... Kxf8 {[%clk 0:00:28.8]} 23. h4 {[%clk 0:00:38.5]} 23...
Qb6 {[%clk 0:00:18.9]} 24. Qg3 {[%clk 0:00:30.2]} 24... Kg8 {[%clk 0:00:16.7]}
25. Re2 {[%clk 0:00:16.7]} 25... Qd4 {[%clk 0:00:11.4]} 26. Rae1 {[%clk
0:00:11.7]} 26... Qxh4 {[%clk 0:00:11.1]} 27. Qxh4 {[%clk 0:00:10]} 27... Nxh4
{[%clk 0:00:12]} 28. Ra1 {[%clk 0:00:09.7]} 28... h6 {[%clk 0:00:10.5]} 29. c3
{[%clk 0:00:07.1]} 29... Nf5 {[%clk 0:00:09.4]} 30. Rea2 {[%clk 0:00:06.9]}
30... Bb8 {[%clk 0:00:09.1]} 31. Ra8 {[%clk 0:00:06.4]} 31... Kh7 {[%clk
0:00:09.1]} 32. f4 {[%clk 0:00:07]} 32... Kg6 {[%clk 0:00:08.9]} 33. g4 {[%clk
0:00:06.8]} 33... Ne3 {[%clk 0:00:09.4]} 34. f5+ {[%clk 0:00:04.3]} 34... exf5
{[%clk 0:00:08.8]} 35. Nf4+ {[%clk 0:00:04.1]} 35... Kg5 {[%clk 0:00:09.3]} 36.
Nh3+ {[%clk 0:00:04.3]} 36... Kxg4 {[%clk 0:00:09.7]} 37. Nf2+ {[%clk
0:00:04.3]} 37... Kg5 {[%clk 0:00:10.2]} 38. R1a6 {[%clk 0:00:02.5]} 38... Bxe5
{[%clk 0:00:08.7]} 39. Nd3 {[%clk 0:00:01.3]} 39... Ng4 {[%clk 0:00:07.5]} 0-1

[Event "*** Titled Tuesday Blitz"]
[Site "Chess.com"]
[Date "2021.04.06"]
[Round "1"]
[White "GMRafpig"]
[Black "ARMQUEEN"]
[Result "1-0"]
[WhiteElo "2609"]
[BlackElo "2311"]
[TimeControl "180+1"]
[EndTime "10:07:47 PDT"]
[Termination "GMRafpig won by resignation"]

1. c4 {[%clk 0:02:58.3]} 1... c5 {[%clk 0:02:58.6]} 2. g3 {[%clk 0:02:52.5]}
2... g6 {[%clk 0:02:57.4]} 3. Bg2 {[%clk 0:02:52.4]} 3... Bg7 {[%clk 0:02:57.2]}
4. Nc3 {[%clk 0:02:52.5]} 4... Nf6 {[%clk 0:02:57.5]} 5. Nf3 {[%clk 0:02:50.5]}
5... O-O {[%clk 0:02:57.2]} 6. O-O {[%clk 0:02:50.3]} 6... Nc6 {[%clk
0:02:56.5]} 7. d4 {[%clk 0:02:47.6]} 7... cxd4 {[%clk 0:02:56.5]} 8. Nxd4 {[%clk
0:02:47.8]} 8... Qa5 {[%clk 0:02:53.6]} 9. Nb3 {[%clk 0:02:39.9]} 9... Qh5
{[%clk 0:02:52.9]} 10. Nd5 {[%clk 0:02:29.4]} 10... d6 {[%clk 0:02:50.7]} 11.
Nf4 {[%clk 0:02:29.1]} 11... Qe5 {[%clk 0:02:44.7]} 12. Re1 {[%clk 0:02:17.4]}
12... g5 {[%clk 0:02:41.1]} 13. Nd5 {[%clk 0:02:02.4]} 13... Be6 {[%clk
0:02:38.2]} 14. e4 {[%clk 0:01:47.8]} 14... g4 {[%clk 0:02:34.7]} 15. Bd2 {[%clk
0:01:44.6]} 15... Qh5 {[%clk 0:02:33.3]} 16. Nf4 {[%clk 0:01:43]} 16... Qe5
{[%clk 0:02:30.3]} 17. Bc3 {[%clk 0:01:32.5]} 17... Qg5 {[%clk 0:02:30.2]} 18.
c5 {[%clk 0:01:28.1]} 18... Rad8 {[%clk 0:02:28.1]} 19. cxd6 {[%clk 0:01:26.9]}
19... Rxd6 {[%clk 0:02:27.7]} 20. Qe2 {[%clk 0:01:22.7]} 20... Ne5 {[%clk
0:02:26.1]} 21. Bb4 {[%clk 0:01:22.8]} 21... Bc4 {[%clk 0:02:22.1]} 22. Qc2
{[%clk 0:01:17]} 22... Rd7 {[%clk 0:02:18.3]} 23. Nc5 {[%clk 0:01:15.4]} 23...
Rc7 {[%clk 0:02:16.9]} 24. b3 {[%clk 0:01:10.6]} 24... Bb5 {[%clk 0:02:14.4]}
25. a4 {[%clk 0:01:08.1]} 25... Ba6 {[%clk 0:02:11.9]} 26. Qd2 {[%clk
0:01:05.8]} 26... Nf3+ {[%clk 0:02:10.4]} 27. Bxf3 {[%clk 0:01:05.4]} 27... gxf3
{[%clk 0:02:11.3]} 28. Qe3 {[%clk 0:01:02.7]} 28... Ng4 {[%clk 0:01:52]} 29.
Qxf3 {[%clk 0:01:01.7]} 29... Bxa1 {[%clk 0:01:52]} 30. Rxa1 {[%clk 0:01:01.6]}
30... Ne5 {[%clk 0:01:50.1]} 31. Qe3 {[%clk 0:00:58.3]} 31... Ng4 {[%clk
0:01:47.8]} 32. Qf3 {[%clk 0:00:57.9]} 32... Rfc8 {[%clk 0:01:46.4]} 33. Nxa6
{[%clk 0:00:54.3]} 33... Rc1+ {[%clk 0:01:44.2]} 34. Rxc1 {[%clk 0:00:53.7]}
34... Rxc1+ {[%clk 0:01:45.1]} 35. Kg2 {[%clk 0:00:54]} 35... bxa6 {[%clk
0:01:45.5]} 36. Nd5 {[%clk 0:00:52.1]} 36... f6 {[%clk 0:01:25.9]} 37. Bxe7
{[%clk 0:00:50.1]} 37... Kf7 {[%clk 0:01:20.3]} 38. h3 {[%clk 0:00:47.8]} 38...
Ne5 {[%clk 0:01:18.6]} 39. Qxf6+ {[%clk 0:00:47.9]} 39... Qxf6 {[%clk
0:01:18.6]} 40. Bxf6 {[%clk 0:00:48.8]} 40... Nd3 {[%clk 0:01:17.9]} 41. g4
{[%clk 0:00:45.6]} 41... Rc2 {[%clk 0:01:17.8]} 42. Bd4 {[%clk 0:00:44.9]} 42...
Ne1+ {[%clk 0:01:14.1]} 43. Kg3 {[%clk 0:00:45.2]} 43... Rd2 {[%clk 0:01:12.8]}
44. Bxa7 {[%clk 0:00:44.3]} 44... Rd3+ {[%clk 0:01:12.6]} 45. Kf4 {[%clk
0:00:44.3]} 45... Rxb3 {[%clk 0:01:09.9]} 46. Ke5 {[%clk 0:00:41]} 46... Rxh3
{[%clk 0:01:07.1]} 47. f4 {[%clk 0:00:41.2]} 47... Ra3 {[%clk 0:01:07.3]} 48.
Kd6 {[%clk 0:00:40.8]} 48... Rxa4 {[%clk 0:01:07.4]} 49. e5 {[%clk 0:00:41.4]}
49... Nd3 {[%clk 0:01:07.2]} 50. e6+ {[%clk 0:00:41.5]} 50... Kg7 {[%clk
0:01:04.4]} 51. e7 {[%clk 0:00:39.7]} 51... Re4 {[%clk 0:01:03.1]} 52. f5 {[%clk
0:00:38.5]} 52... Kf7 {[%clk 0:00:58.5]} 53. f6 {[%clk 0:00:37.5]} 53... Re6+
{[%clk 0:00:53]} 54. Kc7 {[%clk 0:00:36.8]} 54... Ne5 {[%clk 0:00:51.8]} 55. Bc5
{[%clk 0:00:34.2]} 55... Nxg4 {[%clk 0:00:51.5]} 56. Kd8 {[%clk 0:00:33]} 56...
h5 {[%clk 0:00:45.6]} 57. Nc7 {[%clk 0:00:28.2]} 57... Nxf6 {[%clk 0:00:40.5]}
58. Nxe6 {[%clk 0:00:27.6]} 58... Kxe6 {[%clk 0:00:41.4]} 59. Bd4 {[%clk
0:00:27.5]} 59... h4 {[%clk 0:00:32.4]} 60. Bxf6 {[%clk 0:00:27.1]} 60... Kxf6
{[%clk 0:00:31.9]} 61. e8=Q {[%clk 0:00:26.4]} 61... h3 {[%clk 0:00:32.8]} 62.
Qh8+ {[%clk 0:00:26.6]} 62... Kf7 {[%clk 0:00:32.3]} 63. Qxh3 {[%clk 0:00:27.5]}
1-0

[Event "*** Titled Tuesday Blitz"]
[Site "Chess.com"]
[Date "2021.04.06"]
[Round "1"]
[White "WisdomGame"]
[Black "eduardoperalta"]
[Result "0-1"]
[WhiteElo "2081"]
[BlackElo "2503"]
[TimeControl "180+1"]
[EndTime "10:07:48 PDT"]
[Termination "eduardoperalta won by resignation"]

1. e4 {[%clk 0:03:00.9]} 1... c5 {[%clk 0:03:00.1]} 2. Nf3 {[%clk 0:03:00.8]}
2... Nc6 {[%clk 0:03:00.6]} 3. Bb5 {[%clk 0:03:00.7]} 3... g6 {[%clk 0:03:00.3]}
4. O-O {[%clk 0:03:00.6]} 4... Bg7 {[%clk 0:02:59.7]} 5. Re1 {[%clk 0:03:01.1]}
5... Nf6 {[%clk 0:02:58.7]} 6. Nc3 {[%clk 0:02:56.4]} 6... O-O {[%clk
0:02:54.3]} 7. Bxc6 {[%clk 0:02:53.6]} 7... dxc6 {[%clk 0:02:51.7]} 8. d3 {[%clk
0:02:54.5]} 8... Nd7 {[%clk 0:02:50.9]} 9. Be3 {[%clk 0:02:54]} 9... e5 {[%clk
0:02:41.5]} 10. Qd2 {[%clk 0:02:53.9]} 10... f5 {[%clk 0:02:41.4]} 11. Bh6
{[%clk 0:02:53.8]} 11... f4 {[%clk 0:02:39.3]} 12. Bxg7 {[%clk 0:02:53.2]} 12...
Kxg7 {[%clk 0:02:40.2]} 13. h3 {[%clk 0:02:34.2]} 13... Qf6 {[%clk 0:02:38.7]}
14. Ne2 {[%clk 0:02:26.2]} 14... g5 {[%clk 0:02:30.9]} 15. c3 {[%clk 0:02:25.9]}
15... h5 {[%clk 0:02:15]} 16. Nh2 {[%clk 0:02:25.4]} 16... Rd8 {[%clk
0:02:11.2]} 17. d4 {[%clk 0:02:21.9]} 17... Nb6 {[%clk 0:01:42.3]} 18. Rad1
{[%clk 0:02:18.6]} 18... Be6 {[%clk 0:01:30.4]} 19. dxe5 {[%clk 0:02:10.8]}
19... Qxe5 {[%clk 0:01:28.4]} 20. Qxd8 {[%clk 0:02:07.6]} 20... Rxd8 {[%clk
0:01:29.3]} 21. Rxd8 {[%clk 0:02:07.7]} 21... g4 {[%clk 0:01:09.8]} 22. hxg4
{[%clk 0:02:04.4]} 22... hxg4 {[%clk 0:01:10.7]} 23. f3 {[%clk 0:02:03]} 23...
g3 {[%clk 0:01:09.6]} 24. Nf1 {[%clk 0:02:03]} 24... Nc4 {[%clk 0:01:03.1]} 25.
b3 {[%clk 0:01:59.9]} 25... Nd6 {[%clk 0:00:59.9]} 26. Rd1 {[%clk 0:01:57.9]}
26... Nf7 {[%clk 0:00:57.9]} 27. Re8 {[%clk 0:01:50.3]} 27... Kf6 {[%clk
0:00:50.7]} 28. Rf8 {[%clk 0:01:32.5]} 28... Ke7 {[%clk 0:00:49.9]} 29. Ra8
{[%clk 0:01:29.1]} 29... a6 {[%clk 0:00:46.7]} 30. Rg8 {[%clk 0:01:24.2]} 30...
a5 {[%clk 0:00:37.8]} 31. Ra8 {[%clk 0:01:10.7]} 31... Qc7 {[%clk 0:00:33]} 32.
Nd2 {[%clk 0:00:44.7]} 32... Kf6 {[%clk 0:00:31.8]} 33. e5+ {[%clk 0:00:33]}
33... Qxe5 {[%clk 0:00:24.8]} 34. Ne4+ {[%clk 0:00:33.9]} 34... Kg7 {[%clk
0:00:23.2]} 35. Rxa5 {[%clk 0:00:34.8]} 35... b6 {[%clk 0:00:22.4]} 36. Ra7
{[%clk 0:00:30.5]} 36... Bd5 {[%clk 0:00:22]} 37. Rf1 {[%clk 0:00:24.1]} 37...
Kf8 {[%clk 0:00:18.7]} 38. Rb7 {[%clk 0:00:19]} 38... Nd6 {[%clk 0:00:18.5]} 39.
Nxd6 {[%clk 0:00:17.5]} 39... Qe3+ {[%clk 0:00:14.9]} 40. Kh1 {[%clk 0:00:16.7]}
40... Qxe2 {[%clk 0:00:15.3]} 41. Rc1 {[%clk 0:00:07.6]} 41... Bxf3 {[%clk
0:00:12.3]} 42. Rf7+ {[%clk 0:00:03.9]} 42... Kg8 {[%clk 0:00:11.7]} 43. Rg1
{[%clk 0:00:04.3]} 43... Bd5 {[%clk 0:00:09.9]} 44. Rxf4 {[%clk 0:00:03]} 44...
Qh5+ {[%clk 0:00:09.7]} 0-1

[Event "*** Titled Tuesday Blitz"]
[Site "Chess.com"]
[Date "2021.04.06"]
[Round "1"]
[White "atalz0"]
[Black "Sam_ChessMood"]
[Result "0-1"]
[WhiteElo "2450"]
[BlackElo "2879"]
[TimeControl "180+1"]
[EndTime "10:07:51 PDT"]
[Termination "Sam_ChessMood won on time"]

1. d4 {[%clk 0:03:00.9]} 1... Nf6 {[%clk 0:02:58.6]} 2. c4 {[%clk 0:03:00.9]}
2... e6 {[%clk 0:02:59]} 3. Nc3 {[%clk 0:03:00.5]} 3... Bb4 {[%clk 0:02:58.6]}
4. Qc2 {[%clk 0:03:00.7]} 4... O-O {[%clk 0:02:57.1]} 5. e4 {[%clk 0:03:00.4]}
5... d6 {[%clk 0:02:57.6]} 6. Bd3 {[%clk 0:03:00]} 6... e5 {[%clk 0:02:54.7]} 7.
Ne2 {[%clk 0:02:58.3]} 7... Nc6 {[%clk 0:02:52.2]} 8. d5 {[%clk 0:02:58.4]} 8...
Ne7 {[%clk 0:02:14.5]} 9. a3 {[%clk 0:02:58.1]} 9... Ba5 {[%clk 0:02:08.9]} 10.
O-O {[%clk 0:02:43.7]} 10... c5 {[%clk 0:02:05.9]} 11. Rb1 {[%clk 0:02:35.9]}
11... Bxc3 {[%clk 0:01:49.5]} 12. Nxc3 {[%clk 0:02:36.8]} 12... Ng6 {[%clk
0:01:45.4]} 13. g3 {[%clk 0:02:36.3]} 13... Bh3 {[%clk 0:01:36.4]} 14. Re1
{[%clk 0:02:36]} 14... b6 {[%clk 0:01:36.7]} 15. f3 {[%clk 0:02:30.1]} 15... Bd7
{[%clk 0:01:31.4]} 16. h4 {[%clk 0:02:23.9]} 16... h6 {[%clk 0:01:31]} 17. Be3
{[%clk 0:02:20.6]} 17... Nh7 {[%clk 0:01:27.5]} 18. b4 {[%clk 0:02:13.8]} 18...
Ne7 {[%clk 0:01:25.8]} 19. g4 {[%clk 0:02:03]} 19... Ng6 {[%clk 0:01:25.6]} 20.
h5 {[%clk 0:02:02.3]} 20... Nf4 {[%clk 0:01:23.3]} 21. Bf1 {[%clk 0:01:57.3]}
21... Ng5 {[%clk 0:01:21.3]} 22. Bg2 {[%clk 0:01:15.5]} 22... Qf6 {[%clk
0:01:20.2]} 23. Rf1 {[%clk 0:01:05.4]} 23... g6 {[%clk 0:01:17.6]} 24. Bxf4
{[%clk 0:00:53.7]} 24... Qxf4 {[%clk 0:01:14.1]} 25. Qc1 {[%clk 0:00:49.5]}
25... Qg3 {[%clk 0:01:02.9]} 26. Qe1 {[%clk 0:00:48.6]} 26... Nh3+ {[%clk
0:00:51.6]} 27. Kh1 {[%clk 0:00:48.3]} 27... Qxe1 {[%clk 0:00:52.2]} 28. Rfxe1
{[%clk 0:00:42.9]} 28... Nf4 {[%clk 0:00:53.1]} 29. Ne2 {[%clk 0:00:34.2]} 29...
Nd3 {[%clk 0:00:43.9]} 30. Rg1 {[%clk 0:00:30.3]} 30... cxb4 {[%clk 0:00:41.6]}
31. axb4 {[%clk 0:00:29]} 31... Rfc8 {[%clk 0:00:41.5]} 32. Bf1 {[%clk
0:00:16.4]} 32... Rxc4 {[%clk 0:00:29.6]} 33. Nf4 {[%clk 0:00:11.5]} 33... exf4
{[%clk 0:00:26.4]} 34. Bxd3 {[%clk 0:00:11.5]} 34... Rc3 {[%clk 0:00:26.9]} 35.
Rgd1 {[%clk 0:00:10]} 35... gxh5 {[%clk 0:00:22.3]} 36. gxh5 {[%clk 0:00:09.8]}
36... Kg7 {[%clk 0:00:22.9]} 37. Rg1+ {[%clk 0:00:06.1]} 37... Kf6 {[%clk
0:00:22.9]} 38. Be2 {[%clk 0:00:05.3]} 38... Re3 {[%clk 0:00:22]} 39. Rb2 {[%clk
0:00:05]} 39... Rc8 {[%clk 0:00:22.1]} 40. Ra1 {[%clk 0:00:03.8]} 40... Rc7
{[%clk 0:00:21.6]} 41. Kg2 {[%clk 0:00:03.7]} 41... Ke5 {[%clk 0:00:19.2]} 42.
Kf2 {[%clk 0:00:03.7]} 42... f5 {[%clk 0:00:18.6]} 43. exf5 {[%clk 0:00:02.6]}
43... Bxf5 {[%clk 0:00:19.5]} 44. Rba2 {[%clk 0:00:02.9]} 44... Kf6 {[%clk
0:00:08.3]} 45. Ke1 {[%clk 0:00:01.9]} 45... Rce7 {[%clk 0:00:08.1]} 46. Kf1
{[%clk 0:00:01.1]} 46... Bh3+ {[%clk 0:00:07.3]} 0-1